[Event "IND-ch Women 2019"]
[Site "Karaikkudi"]
[Date "2019.07.21"]
[Round "4.17"]
[White "Divyabharathi Masanam"]
[Black "Varshini, V."]
[Result "0-1"]
[ECO "B42"]
[WhiteElo "1730"]
[BlackElo "2087"]
[Annotator "NA"]
[PlyCount "174"]
[EventDate "2019.07.19"]
[EventType "swiss"]
[EventCountry "IND"]
[SourceTitle "playchess.com"]
[Source "ChessBase"]
[SourceQuality "1"]
[TimeControl "40/5400+30:1800+30"]

1. e4 {[%emt 0:00:48]} c5 {[%emt 0:00:00]} 2. Nf3 {[%emt 0:00:43]} d6 {[%emt 0:00:00]} 3. d4 {[%emt 0:00:30]} cxd4 {[%emt 0:00:05]} 4. Nxd4 {[%emt 0:00:10]} Nf6 {[%emt 0:00:06]} 5. Nc3 {[%emt 0:00:58]} a6 {[%emt 0:00:06]} 6. Be3 {[%emt 0:01:34]} e6 {[%emt 0:01:06]} 7. Bd3 {[%emt 0:05:08]} Be7 {[%emt 0:01:43]} 8. O-O {[%emt 0:02:48]} Qc7 {[%emt 0:02:17]} 9. f3 {[%emt 0:04:10] B42: Sicilian: Kan Variation: 5 Bd3} (9. a4 b6 10. f4 Bb7 11. Qf3 Nbd7 12. Qg3 g6 13. Rad1 Rc8 14. h3 Qb8 15. Nde2 h5 16. Bd4 h4 {0-1 (50) Salemgareev,T (2360)-Kozionov,K (2437) Voronezh 2017}) 9... Nbd7 {[%emt 0:03:52]} 10. Re1 {[%emt 0:12:27]} O-O {[%emt 0:05:31]} 11. Bf2 $146 {[%emt 0:02:28]} ({Predecessor:} 11. Qd2 b5 12. Rad1 Bb7 13. Bxb5 axb5 14. Ndxb5 Qb8 15. Nxd6 {1-0 (63) Kaphle,S (1787)-Endress,A (1690) Bad Sulza 2004}) 11... b5 {[%emt 0:04:39]} 12. a4 {[%emt 0:06:12]} b4 {[%emt 0:01:41]} 13. Na2 {[%emt 0:00:17]} d5 {[%emt 0:04:01]} 14. c3 {[%emt 0:13:34]} dxe4 {[%emt 0:07:54]} 15. fxe4 {[%emt 0:00:17]} Bd6 {[%emt 0:02:25]} 16. h3 {[%emt 0:06:09]} bxc3 {[%emt 0:05:15]} 17. Nxc3 {[%emt 0:00:14]} Ne5 {[%emt 0:02:12]} 18. Bf1 {[%emt 0:07:31]} Qe7 {[%emt 0:02:25]} 19. Nf3 {[%emt 0:03:49]} Nfd7 {[%emt 0:06:46]} 20. Kh1 {[%emt 0:03:07]} Bb7 {[%emt 0:03:18]} 21. Be2 {[%emt 0:02:14]} Rfd8 {[%emt 0:04:31]} 22. Qc2 {[%emt 0:01:06]} Rac8 {[%emt 0:02:32]} 23. Rad1 $17 {[%emt 0:01:18]} Bb8 {[%emt 0:02:29]} 24. Qb3 {[%emt 0:03:16]} Nxf3 {[%emt 0:02:40]} 25. Bxf3 {[%emt 0:02:21]} Ne5 {[%emt 0:00:45]} 26. Be2 {[%emt 0:00:36]} Ng6 {[%emt 0:06:04]} 27. Bb6 {[%emt 0:01:41]} Rd6 {[%emt 0:04:56]} 28. Bg1 {[%emt 0:03:26]} Nf4 {[%emt 0:03:02]} 29. Bf1 {[%emt 0:00:50]} Nh5 {[%emt 0:02:05]} 30. Bh2 {[%emt 0:02:18]} Rxd1 {[%emt 0:01:31]} 31. Rxd1 {[%emt 0:00:05]} Ng3+ {[%emt 0:03:02]} 32. Bxg3 {[%emt 0:00:07]} Bxg3 {[%emt 0:00:02]} 33. Qb6 {[%emt 0:00:58]} Ra8 {[%emt 0:07:24]} 34. a5 {[%emt 0:03:09]} Be5 {[%emt 0:01:31]} 35. Bd3 {[%emt 0:02:12]} g6 {[%emt 0:02:26]} 36. Bc2 {[%emt 0:02:15]} Rb8 {[%emt 0:01:05]} 37. Qe3 {[%emt 0:02:28]} Qb4 {[%emt 0:01:12]} 38. Na4 {[%emt 0:01:34]} Qxa5 {[%emt 0:01:30]} 39. Nc5 {[%emt 0:00:42]} Bc6 {[%emt 0:01:13]} 40. b3 {[%emt 0:00:00]} Qb6 {[%emt 0:00:00]} 41. Qf2 {[%emt 0:05:10]} Bb5 {[%emt 0:06:02]} 42. Nd3 {[%emt 0:03:52]} Qxf2 {[%emt 0:04:00]} 43. Nxf2 {[%emt 0:00:06]} Rc8 {[%emt 0:00:10]} 44. Bd3 {[%emt 0:00:52]} Rc3 {[%emt 0:03:22]} 45. Bxb5 {[%emt 0:01:41]} axb5 {[%emt 0:00:06]} 46. Rd3 {[%emt 0:00:05]} b4 {[%emt 0:00:46]} 47. Kg1 {[%emt 0:00:28]} Bg3 {[%emt 0:00:54]} 48. Rd8+ {[%emt 0:02:21]} Kg7 {[%emt 0:00:08]} 49. Kf1 {[%emt 0:00:03]} Rxb3 {[%emt 0:00:48]} 50. Nd3 {[%emt 0:00:52]} Rb1+ {[%emt 0:00:48]} 51. Ke2 {[%emt 0:00:04]} b3 {[%emt 0:00:54]} 52. Rd7 {[%emt 0:00:34]} Kf6 {[%emt 0:05:16]} 53. Rb7 {[%emt 0:04:54]} Be5 {[%emt 0:03:24]} 54. Nc5 {[%emt 0:03:23]} b2 {[%emt 0:03:24]} 55. Nd7+ {[%emt 0:00:06]} Kg7 {[%emt 0:00:07]} 56. Nxe5 {[%emt 0:00:05]} Rg1 {[%emt 0:00:06]} 57. Rxf7+ {[%emt 0:00:13]} Kg8 {[%emt 0:01:31]} 58. Rb7 {[%emt 0:00:07]} b1=Q {[%emt 0:00:07]} 59. Rxb1 {[%emt 0:00:04]} Rxb1 {[%emt 0:00:04]} 60. Kf3 {[%emt 0:00:15]} Kg7 {[%emt 0:01:51]} 61. Kf4 {[%emt 0:03:20]} Rb2 {[%emt 0:01:05]} 62. g3 {[%emt 0:00:14]} Rf2+ {[%emt 0:01:08]} 63. Ke3 {[%emt 0:00:06]} Rf8 {[%emt 0:00:49]} 64. Nd7 {[%emt 0:00:18]} Rd8 {[%emt 0:00:24]} 65. Ne5 {[%emt 0:00:30]} h5 {[%emt 0:02:38]} 66. h4 {[%emt 0:02:46]} Kf6 {[%emt 0:01:30]} 67. Kf4 {[%emt 0:01:12]} Rd1 {[%emt 0:00:17]} 68. Nf3 {[%emt 0:00:48]} Rf1 {[%emt 0:00:33]} 69. e5+ {[%emt 0:02:13]} Ke7 {[%emt 0:00:19]} 70. Ke4 {[%emt 0:00:37]} Ra1 {[%emt 0:00:55]} 71. Ng5 {[%emt 0:00:52]} Ra4+ {[%emt 0:00:32]} 72. Kf3 {[%emt 0:00:23]} Kd7 {[%emt 0:00:32]} 73. Nh7 {[%emt 0:02:45]} Kc6 {[%emt 0:01:01]} 74. Nf8 {[%emt 0:00:23]} Rg4 {[%emt 0:03:00]} 75. Nxe6 {[%emt 0:00:17]} Kd5 {[%emt 0:00:06]} 76. Nf4+ {[%emt 0:02:57]} Kxe5 {[%emt 0:00:05]} 77. Nd3+ {[%emt 0:00:54]} Kf6 {[%emt 0:00:04]} 78. Nf4 {[%emt 0:00:52]} Kf5 {[%emt 0:00:06]} 79. Nd5 {[%emt 0:00:18]} Ra4 {[%emt 0:00:26]} 80. Ne7+ {[%emt 0:01:13]} Kf6 {[%emt 0:00:06]} 81. Nd5+ {[%emt 0:00:03]} Ke5 {[%emt 0:00:07]} 82. Nf4 {[%emt 0:00:26]} Rxf4+ {[%emt 0:02:13]} 83. gxf4+ {[%emt 0:00:07]} Kf5 {[%emt 0:00:01]} 84. Ke3 {[%emt 0:00:38]} Kg4 {[%emt 0:00:10]} 85. Ke4 {[%emt 0:01:21]} Kxh4 {[%emt 0:00:08]} 86. f5 {[%emt 0:00:31]} gxf5+ {[%emt 0:00:05]} 87. Kf4 {[%emt 0:00:49]} Kh3 {[%emt 0:00:05]} 0-1

[Event "IND-ch Women 2019"]
[Site "Karaikkudi"]
[Date "2019.07.21"]
[Round "4.18"]
[White "Saranya, J."]
[Black "Sunyasakta, Satpathy"]
[Result "0-1"]
[ECO "C24"]
[WhiteElo "2067"]
[BlackElo "1801"]
[Annotator "NA"]
[PlyCount "60"]
[EventDate "2019.07.19"]
[EventType "swiss"]
[EventCountry "IND"]
[SourceTitle "playchess.com"]
[Source "ChessBase"]
[SourceQuality "1"]
[TimeControl "40/5400+30:1800+30"]

1. e4 {[%emt 0:00:00]} e5 {[%emt 0:00:00]} 2. Nf3 {[%emt 0:00:00]} Nc6 {[%emt 0:00:02]} 3. Bc4 {[%emt 0:00:00]} Nf6 {[%emt 0:00:16]} 4. d3 {[%emt 0:00:05]} d5 {[%emt 0:00:50]} 5. exd5 {[%emt 0:00:07]} Nxd5 {[%emt 0:00:07]} 6. O-O {[%emt 0:00:06]} Bc5 {[%emt 0:00:37]} 7. Re1 {[%emt 0:01:34]} O-O {[%emt 0:00:27]} 8. Bb5 {[%emt 0:03:43]} Nd4 {[%emt 0:10:33]} 9. Rxe5 {[%emt 0:18:36]} Qd6 {[%emt 0:11:49]} 10. Rg5 {[%emt 0:20:16]} (10. Nbd2 $1 $15) 10... h6 {[%emt 0:12:53]} 11. Nxd4 {[%emt 0:05:38]} hxg5 {[%emt 0:03:06]} 12. Nb3 {[%emt 0:00:26]} Nf4 {[%emt 0:17:48]} 13. d4 {[%emt 0:06:16]} Rd8 {[%emt 0:01:26]} 14. c3 {[%emt 0:03:06]} Bb6 {[%emt 0:01:15]} 15. Bxf4 {[%emt 0:01:02]} gxf4 {[%emt 0:05:04]} 16. N1d2 {[%emt 0:00:56]} Bf5 {[%emt 0:05:15]} 17. Qf3 {[%emt 0:03:37]} c6 $17 {[%emt 0:01:53]} 18. Bc4 {[%emt 0:03:06]} g6 {[%emt 0:04:52]} 19. Bf1 {[%emt 0:05:14]} Bc7 {[%emt 0:05:42]} 20. Nc5 {[%emt 0:02:33]} Rab8 {[%emt 0:00:39]} 21. Bc4 {[%emt 0:03:38]} Kg7 {[%emt 0:03:20]} 22. Bb3 {[%emt 0:01:38]} Rh8 {[%emt 0:01:06]} 23. Nc4 {[%emt 0:06:32]} Qe7 {[%emt 0:01:38]} 24. Nd3 {[%emt 0:02:34]} Be4 {[%emt 0:03:28]} 25. Re1 {[%emt 0:00:39]} Rbe8 {[%emt 0:02:51]} 26. Qd1 {[%emt 0:05:06]} Qh4 {[%emt 0:02:09]} 27. h3 {[%emt 0:00:11]} Bxd3 {[%emt 0:00:38]} 28. Rxe8 {[%emt 0:01:31]} Rxe8 {[%emt 0:00:08]} 29. Qxd3 {[%emt 0:00:26]} Re1+ {[%emt 0:00:12]} 30. Kh2 {[%emt 0:00:12]} Qxf2 {[%emt 0:00:29]} 0-1

[Event "IND-ch Women 2019"]
[Site "Karaikkudi"]
[Date "2019.07.21"]
[Round "4.19"]
[White "Bala Kannamma P"]
[Black "Sheena, E.."]
[Result "1-0"]
[ECO "A42"]
[WhiteElo "2051"]
[BlackElo "1763"]
[Annotator "NA"]
[PlyCount "113"]
[EventDate "2019.07.19"]
[EventType "swiss"]
[EventCountry "IND"]
[SourceTitle "playchess.com"]
[Source "ChessBase"]
[SourceQuality "1"]
[TimeControl "40/5400+30:1800+30"]

1. e4 {[%emt 0:00:00]} e6 {[%emt 0:00:00]} 2. d4 {[%emt 0:00:09]} d6 {[%emt 0:00:00]} 3. c4 {[%emt 0:01:25]} g6 {[%emt 0:00:03]} 4. Nc3 {[%emt 0:04:14]} Bg7 {[%emt 0:00:08]} 5. Be3 {[%emt 0:01:12]} Ne7 {[%emt 0:00:24]} 6. g3 {[%emt 0:00:49]} Nd7 {[%emt 0:00:37]} 7. Bg2 {[%emt 0:01:47]} O-O {[%emt 0:02:04]} 8. h4 {[%emt 0:02:20]} f5 {[%emt 0:00:46]} 9. h5 {[%emt 0:01:35]} c5 {[%emt 0:05:09]} 10. hxg6 {[%emt 0:01:09]} hxg6 {[%emt 0:00:16]} 11. Nge2 {[%emt 0:03:10]} cxd4 {[%emt 0:09:08]} 12. Nxd4 {[%emt 0:15:25]} Ne5 {[%emt 0:00:25]} 13. exf5 {[%emt 0:08:27]} Nxf5 {[%emt 0:17:14]} 14. Nxf5 {[%emt 0:03:22]} Rxf5 {[%emt 0:00:43]} 15. Be4 {[%emt 0:03:51]} Rf8 {[%emt 0:07:09]} 16. Qe2 {[%emt 0:10:04]} Qc7 {[%emt 0:05:12]} 17. c5 {[%emt 0:10:48]} d5 {[%emt 0:03:33] [#]} 18. Bg2 $16 {[%emt 0:01:19]} ({White should play} 18. f4 $1 $18 dxe4 19. fxe5) 18... Qf7 {[%emt 0:25:20]} 19. O-O-O {[%emt 0:05:03]} Nc4 {[%emt 0:04:06]} 20. f4 {[%emt 0:06:52]} Nxe3 {[%emt 0:03:41]} 21. Qxe3 {[%emt 0:00:02]} d4 {[%emt 0:00:20]} 22. Rxd4 {[%emt 0:00:03]} Bxd4 {[%emt 0:00:12]} 23. Qxd4 {[%emt 0:00:03]} Qg7 {[%emt 0:00:14]} 24. Qd3 {[%emt 0:03:34]} Rb8 {[%emt 0:06:41]} 25. Be4 {[%emt 0:00:20]} Bd7 {[%emt 0:04:49]} 26. Bxg6 {[%emt 0:02:43]} Bc6 {[%emt 0:00:20]} 27. Bh7+ {[%emt 0:08:45]} Kf7 {[%emt 0:00:11]} 28. Be4 {[%emt 0:00:35]} Rbd8 {[%emt 0:02:14]} 29. Qf3 {[%emt 0:00:43]} Rh8 {[%emt 0:00:39]} 30. Rxh8 {[%emt 0:02:50]} Rxh8 {[%emt 0:00:05]} 31. Bxc6 {[%emt 0:00:08]} bxc6 {[%emt 0:00:07]} 32. Qxc6 {[%emt 0:01:00]} Qxg3 {[%emt 0:00:21]} 33. Qd7+ {[%emt 0:00:21]} Kf8 {[%emt 0:01:13]} 34. Qd8+ {[%emt 0:00:03]} Kg7 {[%emt 0:00:02]} 35. Qe7+ {[%emt 0:00:20]} Kg8 {[%emt 0:01:01]} 36. Qxe6+ {[%emt 0:00:03]} Kg7 {[%emt 0:00:02]} 37. Qe5+ {[%emt 0:00:39]} Kg8 {[%emt 0:00:45]} 38. Qb8+ {[%emt 0:00:09]} Kh7 {[%emt 0:00:20]} 39. Qxa7+ {[%emt 0:00:12]} Kg6 {[%emt 0:00:02]} 40. Qa6+ {[%emt 0:00:00]} Kh5 {[%emt 0:00:00]} 41. Qe2+ {[%emt 0:02:19]} Kh4 {[%emt 0:03:47]} 42. Qe7+ {[%emt 0:00:49]} Kh3 {[%emt 0:00:22]} 43. Qe6+ {[%emt 0:03:41]} Kh2 {[%emt 0:03:42]} 44. Qe2+ {[%emt 0:01:24]} Kh3 {[%emt 0:00:12]} 45. Qf1+ {[%emt 0:03:11]} Kg4 {[%emt 0:00:04]} 46. Qd1+ {[%emt 0:01:09]} Kf5 {[%emt 0:00:45]} 47. Qd7+ {[%emt 0:01:55]} Kg6 {[%emt 0:01:14]} 48. f5+ {[%emt 0:01:03]} Kh6 {[%emt 0:00:56]} 49. Qe6+ {[%emt 0:01:58]} Kh7 {[%emt 0:00:56]} 50. Qd7+ {[%emt 0:07:21]} Kh6 {[%emt 0:00:11]} 51. Qd2+ {[%emt 0:00:28]} Kh7 {[%emt 0:00:42]} 52. Ne4 {[%emt 0:01:16]} Qg1+ {[%emt 0:00:34]} 53. Kc2 {[%emt 0:00:17]} Rf8 {[%emt 0:01:24]} 54. Ng5+ {[%emt 0:02:23]} Kh8 {[%emt 0:00:29]} 55. Qc3+ {[%emt 0:00:06]} Kg8 {[%emt 0:00:25]} 56. Qc4+ {[%emt 0:00:03]} Kh8 {[%emt 0:26:41]} 57. Qh4+ {[%emt 0:00:10]} 1-0

[Event "IND-ch Women 2019"]
[Site "Karaikkudi"]
[Date "2019.07.21"]
[Round "4.20"]
[White "Chinnam Vyshnavi"]
[Black "Meenal Gupta"]
[Result "0-1"]
[ECO "E61"]
[WhiteElo "1664"]
[BlackElo "2004"]
[Annotator "NA"]
[PlyCount "74"]
[EventDate "2019.07.19"]
[EventType "swiss"]
[EventCountry "IND"]
[SourceTitle "playchess.com"]
[Source "ChessBase"]
[SourceQuality "1"]
[TimeControl "40/5400+30:1800+30"]

1. d4 {[%emt 0:00:01]} Nf6 {[%emt 0:00:00]} 2. Bf4 {[%emt 0:00:12]} g6 {[%emt 0:00:00]} 3. e3 {[%emt 0:00:07]} Bg7 {[%emt 0:00:00]} 4. Nf3 {[%emt 0:00:05]} O-O {[%emt 0:00:01]} 5. h3 {[%emt 0:00:05]} b6 {[%emt 0:02:55]} 6. Be2 {[%emt 0:00:09]} Bb7 {[%emt 0:00:05]} 7. O-O {[%emt 0:00:12]} d6 {[%emt 0:01:13]} 8. c4 {[%emt 0:00:10]} Nbd7 {[%emt 0:00:06]} 9. Nc3 {[%emt 0:00:06]} Ne4 {[%emt 0:03:03]} 10. Qc2 {[%emt 0:02:33]} Nxc3 {[%emt 0:09:04]} 11. bxc3 {[%emt 0:01:21]} e5 {[%emt 0:00:56] E61: King's Indian: Early deviations for White, including Smyslov System} 12. Bh2 {[%emt 0:03:18]} f5 $146 {[%emt 0:07:53]} ({Predecessor:} 12... Qe7 13. Rfe1 Kh8 14. Nd2 f5 15. f4 c5 16. Bf3 Bxf3 17. Nxf3 e4 18. Nd2 Rac8 19. Qb3 {½-½ (76) Ribli,Z (2605)-Timman,J (2640) Montpellier 1985}) 13. Qb3 {[%emt 0:13:11]} Kh8 {[%emt 0:00:27]} 14. Rfd1 {[%emt 0:01:32]} Qe7 {[%emt 0:08:48]} 15. c5 {[%emt 0:04:27]} (15. Re1 $15) 15... dxc5 {[%emt 0:02:37]} 16. d5 {[%emt 0:09:39]} Rad8 {[%emt 0:03:42]} 17. Rac1 {[%emt 0:02:15]} Nf6 {[%emt 0:06:44]} 18. c4 {[%emt 0:04:13]} Ne4 {[%emt 0:00:19]} 19. Ne1 {[%emt 0:06:32]} Nd6 {[%emt 0:09:02]} 20. Nd3 {[%emt 0:03:32]} f4 {[%emt 0:07:39]} 21. exf4 {[%emt 0:04:34] [#]} exf4 {[%emt 0:00:24]} (21... e4 $1 $17 {[%cal Re4d3]} 22. Ne5 g5) 22. Bg4 {[%emt 0:07:49]} (22. Nxf4 $15 Rxf4 {[%mdl 64] Remove Defender} 23. Bxf4 Qxe2 24. Re1) 22... Qg5 {[%emt 0:01:53]} 23. Re1 {[%emt 0:01:35]} (23. Ne1 $17 {was necessary.}) 23... h5 $17 {[%emt 0:04:36]} (23... c6 $19 {and Black stays clearly on top.} 24. Nxf4 Rxf4 25. Bxf4 Qxf4) 24. Bf3 {[%emt 0:02:41]} Bc8 {[%emt 0:00:05]} 25. Kh1 {[%emt 0:00:11]} Bd4 {[%emt 0:02:24]} 26. Qc2 {[%emt 0:01:42]} Rf7 {[%emt 0:02:48]} 27. Re2 {[%emt 0:05:45]} Rdf8 {[%emt 0:00:48]} 28. Rce1 {[%emt 0:00:21]} Bf5 {[%emt 0:05:59]} 29. Rd1 {[%emt 0:04:44]} Bg4 {[%emt 0:01:45]} 30. hxg4 {[%emt 0:03:23]} hxg4 {[%emt 0:00:02]} 31. Nxf4 {[%emt 0:11:26]} Rxf4 {[%emt 0:05:13]} 32. Bxf4 {[%emt 0:02:07]} Rxf4 {[%emt 0:02:29]} 33. Be4 {[%emt 0:01:11]} g3 {[%emt 0:02:00]} 34. Kg1 {[%emt 0:04:09]} Qh4 {[%emt 0:00:35]} 35. Red2 {[%emt 0:01:04]} Nxe4 {[%emt 0:00:47]} 36. Rxd4 {[%emt 0:00:21]} gxf2+ {[%emt 0:01:04]} 37. Kf1 {[%emt 0:00:50]} Ng3# {[%emt 0:00:06]} 0-1

[Event "IND-ch Women 2019"]
[Site "Karaikkudi"]
[Date "2019.07.21"]
[Round "4.21"]
[White "Potluri Saye Srreezza"]
[Black "Boramanikar Tanisha S"]
[Result "1-0"]
[ECO "E17"]
[WhiteElo "1999"]
[BlackElo "1720"]
[Annotator "NA"]
[PlyCount "69"]
[EventDate "2019.07.19"]
[EventType "swiss"]
[EventCountry "IND"]
[SourceTitle "playchess.com"]
[Source "ChessBase"]
[SourceQuality "1"]
[TimeControl "40/5400+30:1800+30"]

1. Nf3 {[%emt 0:00:00]} Nf6 {[%emt 0:00:00]} 2. d4 {[%emt 0:00:00]} b6 {[%emt 0:00:13]} 3. g3 {[%emt 0:00:07]} e6 {[%emt 0:02:14]} 4. Bg2 {[%emt 0:00:16]} Bb7 {[%emt 0:00:11]} 5. O-O {[%emt 0:00:15]} Be7 {[%emt 0:01:25]} 6. c4 {[%emt 0:00:08]} O-O {[%emt 0:00:50]} 7. Nc3 {[%emt 0:00:49]} d5 {[%emt 0:03:24]} 8. cxd5 {[%emt 0:06:52]} exd5 {[%emt 0:00:56]} 9. b3 {[%emt 0:02:04]} Nbd7 {[%emt 0:03:00]} 10. Bb2 {[%emt 0:00:17]} Re8 {[%emt 0:02:23]} 11. Rc1 {[%emt 0:02:02]} Rc8 {[%emt 0:02:40] E17: Queen's Indian: 4 g3 Bb7 5 Bg2 Be7} (11... Bf8 12. Qc2 a6 13. Rfd1 Rc8 14. e3 Qe7 15. Ne5 Qe6 16. Ne2 c6 17. Nf4 Qd6 18. Bh3 Rc7 19. b4 {½-½ (39) Leko,P (2691)-Bacrot,E (2725) Riadh 2017}) 12. e3 {[%emt 0:02:29]} a5 $146 {[%emt 0:10:38]} ({Predecessor:} 12... a6 13. Qd3 Ne4 14. Nd2 Nxd2 15. Qxd2 Nf6 16. Rfd1 Bb4 17. Bh3 Ra8 18. Qc2 Qe7 19. Bg2 {0-1 (38) Jurek,J (2287)-Handler,L (2390) Austria 2016}) 13. Ne5 {[%emt 0:02:10]} Bb4 {[%emt 0:06:41]} (13... Bd6 $11 {keeps the balance.}) 14. a3 {[%emt 0:14:20]} Bxc3 {[%emt 0:00:36]} 15. Bxc3 {[%emt 0:00:13]} Nxe5 {[%emt 0:02:09]} 16. dxe5 {[%emt 0:00:14]} Ne4 {[%emt 0:00:24]} 17. Bb2 {[%emt 0:00:35]} Qe7 {[%emt 0:03:13]} 18. Qc2 {[%emt 0:08:52]} Qe6 {[%emt 0:08:21]} 19. b4 {[%emt 0:03:18]} axb4 {[%emt 0:01:57]} 20. axb4 {[%emt 0:00:10]} Qh6 {[%emt 0:03:47]} 21. Ra1 {[%emt 0:03:10]} c5 {[%emt 0:03:13]} 22. Ra7 {[%emt 0:06:15]} cxb4 {[%emt 0:04:15]} 23. Qa4 {[%emt 0:03:00]} Ra8 {[%emt 0:10:07]} 24. Bxe4 {[%emt 0:00:59]} (24. Rxa8 $16 Rxa8 25. Qxb4) 24... dxe4 $2 {[%emt 0:00:23]} (24... Bc6 $14 25. Qa6 dxe4) 25. Qd7 {[%emt 0:00:19]} Bc6 {[%emt 0:03:12]} 26. Qxf7+ $18 {[%emt 0:00:49]} Kh8 {[%emt 0:00:01]} 27. Rxa8 {[%emt 0:01:49]} Rxa8 {[%emt 0:00:01]} 28. Rc1 {[%emt 0:01:06]} Rg8 {[%emt 0:05:26]} 29. Qc4 {[%emt 0:10:42]} Bb7 {[%emt 0:02:57]} 30. e6 {[%emt 0:02:54]} Qg5 {[%emt 0:03:30]} 31. Qxb4 {[%emt 0:06:00]} b5 {[%emt 0:01:21]} 32. Rc7 {[%emt 0:05:08]} Qg4 {[%emt 0:02:26]} 33. Qd4 {[%emt 0:03:20]} Bc8 {[%emt 0:02:17]} 34. e7 {[%emt 0:00:17]} Re8 {[%emt 0:03:17]} 35. Rxc8 {[%emt 0:00:17]} 1-0

[Event "IND-ch Women 2019"]
[Site "Karaikkudi"]
[Date "2019.07.22"]
[Round "5.3"]
[White "Ramaswamy, Aarthie"]
[Black "Vijayalakshmi, Subbaraman"]
[Result "1/2-1/2"]
[ECO "C90"]
[WhiteElo "2020"]
[BlackElo "2357"]
[Annotator "ChessBase"]
[PlyCount "145"]
[EventDate "2019.07.19"]
[EventType "swiss"]
[EventCountry "IND"]
[SourceTitle "playchess.com"]
[Source "ChessBase"]
[SourceQuality "1"]
[TimeControl "40/5400+30:1800+30"]

1. e4 {[%emt 0:00:17]} e5 {[%emt 0:00:45]} 2. Nf3 {[%emt 0:00:04]} Nc6 {[%emt 0:00:06]} 3. Bb5 {[%emt 0:00:04]} a6 {[%emt 0:00:04]} 4. Ba4 {[%emt 0:00:03]} Nf6 {[%emt 0:00:15]} 5. O-O {[%emt 0:00:12]} Be7 {[%emt 0:00:15]} 6. d3 {[%emt 0:02:40]} d6 {[%emt 0:01:05]} 7. c3 {[%emt 0:00:06]} O-O {[%emt 0:01:47]} 8. Re1 {[%emt 0:06:32]} Bg4 {[%emt 0:02:55]} 9. h3 {[%emt 0:03:15]} Bh5 {[%emt 0:00:35]} 10. Nbd2 {[%emt 0:04:30]} b5 {[%emt 0:10:35]} 11. Bb3 {[%emt 0:01:20]} d5 {[%emt 0:01:46]} 12. Qe2 {[%emt 0:07:11]} d4 {[%emt 0:13:58]} 13. Nf1 {[%emt 0:05:37]} dxc3 {[%emt 0:18:43]} 14. bxc3 {[%emt 0:00:07]} Qd7 {[%emt 0:02:26]} 15. Ng3 {[%emt 0:05:35]} Bg6 {[%emt 0:00:42]} 16. Bb2 {[%emt 0:16:05]} Bd6 {[%emt 0:05:30]} 17. Nh4 {[%emt 0:07:41]} a5 {[%emt 0:01:32]} 18. a4 {[%emt 0:02:54]} b4 {[%emt 0:00:27]} 19. Nhf5 {[%emt 0:00:26]} bxc3 {[%emt 0:01:17]} 20. Bxc3 {[%emt 0:00:49]} Bb4 {[%emt 0:00:52]} 21. Rec1 {[%emt 0:02:10]} Bxf5 {[%emt 0:04:33]} 22. Nxf5 {[%emt 0:00:04]} g6 {[%emt 0:02:15]} 23. Qe3 {[%emt 0:10:02]} Bxc3 {[%emt 0:08:17]} 24. Rxc3 {[%emt 0:13:19]} Nd4 {[%emt 0:02:31]} 25. Qg5 {[%emt 0:01:01]} Nh5 {[%emt 0:03:56]} 26. Bd1 {[%emt 0:07:00]} f6 {[%emt 0:06:12]} 27. Qc1 {[%emt 0:01:29]} gxf5 {[%emt 0:01:29]} 28. Rxc7 {[%emt 0:01:34]} Qe8 {[%emt 0:02:32]} 29. Qh6 {[%emt 0:00:07]} Qg6 {[%emt 0:00:15]} 30. Qxh5 {[%emt 0:01:00]} f4 {[%emt 0:01:48]} 31. Rac1 {[%emt 0:00:54]} Rf7 {[%emt 0:01:33]} 32. Qxg6+ {[%emt 0:00:31]} hxg6 {[%emt 0:00:05]} 33. Kf1 {[%emt 0:00:30]} Rb8 {[%emt 0:00:35]} 34. Rc8+ {[%emt 0:00:39]} Rxc8 {[%emt 0:02:04]} 35. Rxc8+ {[%emt 0:00:01]} Kg7 {[%emt 0:00:07]} 36. Rb8 {[%emt 0:01:16]} Rc7 {[%emt 0:00:10]} 37. Ke1 {[%emt 0:00:15]} Rc1 {[%emt 0:00:55]} 38. Kd2 {[%emt 0:00:57]} Ra1 {[%emt 0:00:27]} 39. Ra8 {[%emt 0:00:31]} Ra2+ {[%emt 0:00:42]} 40. Ke1 {[%emt 0:00:00]} Nc6 {[%emt 0:00:00]} 41. Bb3 {[%emt 0:20:50]} Ra3 {[%emt 0:01:49]} 42. Bc2 {[%emt 0:00:43]} Nb4 43. Ra7+ {[%emt 0:00:56]} Kh6 {[%emt 0:01:56]} 44. Kd2 {[%emt 0:02:18]} Ra2 {[%emt 0:03:36]} 45. Rc7 {[%emt 0:00:25]} Kg5 {[%emt 0:00:30]} 46. Kc1 {[%emt 0:02:30]} Ra1+ {[%emt 0:03:19]} 47. Kd2 {[%emt 0:00:17]} Nxc2 {[%emt 0:04:16]} 48. Rxc2 {[%emt 0:00:21]} Rxa4 {[%emt 0:00:04]} 49. Ke2 {[%emt 0:03:31]} Rb4 {[%emt 0:01:32]} 50. Rc5 {[%emt 0:01:19]} a4 {[%emt 0:00:38]} 51. Ra5 {[%emt 0:00:02]} Kh6 {[%emt 0:01:57]} 52. Ra6 {[%emt 0:01:30]} Kg7 {[%emt 0:00:19]} 53. Ra7+ {[%emt 0:00:07]} Kf8 {[%emt 0:01:11]} 54. g3 {[%emt 0:00:07]} fxg3 {[%emt 0:00:44]} 55. fxg3 {[%emt 0:00:04]} Rb2+ {[%emt 0:00:52]} 56. Kf3 {[%emt 0:01:04]} Ra2 {[%emt 0:01:00]} 57. h4 {[%emt 0:00:45]} a3 {[%emt 0:00:25]} 58. g4 {[%emt 0:01:19]} Ra1 {[%emt 0:03:06]} 59. h5 {[%emt 0:00:33]} gxh5 {[%emt 0:00:58]} 60. gxh5 {[%emt 0:00:02]} Kg8 {[%emt 0:01:09]} 61. h6 {[%emt 0:01:28]} Kh8 {[%emt 0:00:36]} 62. Kg2 {[%emt 0:00:35]} Kg8 {[%emt 0:00:26]} 63. Kg3 {[%emt 0:00:13]} a2 {[%emt 0:01:23]} 64. Kg2 {[%emt 0:00:03]} Kh8 {[%emt 0:00:11]} 65. h7 {[%emt 0:02:40]} Rd1 {[%emt 0:00:14]} 66. Rxa2 {[%emt 0:00:00]} Rxd3 {[%emt 0:00:05]} 67. Ra6 {[%emt 0:00:00]} Kxh7 {[%emt 0:00:33]} 68. Rxf6 {[%emt 0:00:00]} Re3 {[%emt 0:00:08]} 69. Re6 {[%emt 0:00:00]} Rxe4 {[%emt 0:00:09]} 70. Kf3 {[%emt 0:00:00]} Re1 {[%emt 0:00:13]} 71. Kf2 {[%emt 0:00:00]} Re4 {[%emt 0:00:10]} 72. Kf3 {[%emt 0:00:00]} Re1 {[%emt 0:00:19]} 73. Kf2 {[%emt 0:00:00]} 1/2-1/2